[Event "Titled Tuesday Blitz November 14 Early 2023"]
[White "Klukin, Kirill"]
[Black "Begmuratov, Alisher"]
[WhiteFideId "24199273"]
[BlackFideId "14203367"]
[WhiteElo "2865"]
[BlackElo "2710"]
[Result "0-1"]
[Round "4"]
[TimeControl "180+1"]
[Date "2023.11.14"]
[WhiteClock "0:00:04"]
[BlackClock "0:00:59"]
[Board "31"]

1. d4 {[%clk 0:02:59]}  Nf6 {[%clk 0:02:59]} 2. Nf3 {[%clk 0:03:00]}  e6 {[%clk 0:02:59]} 3. e3 {[%clk 0:03:00]}  b6 {[%clk 0:02:58]} 4. Bd3 {[%clk 0:03:01]}  Bb7 {[%clk 0:02:58]} 5. O-O {[%clk 0:03:02]}  d5 {[%clk 0:02:56]} 6. b3 {[%clk 0:03:02]}  Bd6 {[%clk 0:02:56]} 7. Bb2 {[%clk 0:03:03]}  O-O {[%clk 0:02:56]} 8. Nbd2 {[%clk 0:03:03]}  a6 {[%clk 0:02:57]} 9. Qe2 {[%clk 0:03:04]}  Nbd7 {[%clk 0:02:56]} 10. Ne5 {[%clk 0:02:55]}  c5 {[%clk 0:02:52]} 11. f4 {[%clk 0:02:55]}  Ne4 {[%clk 0:02:51]} 12. Bxe4 {[%clk 0:02:55]}  dxe4 {[%clk 0:02:51]} 13. Ndc4 {[%clk 0:02:53]}  Bc7 {[%clk 0:02:49]} 14. Nxd7 {[%clk 0:02:50]}  Qxd7 {[%clk 0:02:49]} 15. dxc5 {[%clk 0:02:51]}  bxc5 {[%clk 0:02:47]} 16. Rad1 {[%clk 0:02:51]}  Qe7 {[%clk 0:02:44]} 17. Be5 {[%clk 0:02:29]}  f6 {[%clk 0:02:31]} 18. Bxc7 {[%clk 0:01:47]}  Qxc7 {[%clk 0:02:32]} 19. f5 {[%clk 0:01:46]}  exf5 {[%clk 0:02:23]} 20. Rxf5 {[%clk 0:01:47]}  Rad8 {[%clk 0:02:23]} 21. Rxd8 {[%clk 0:01:10]}  Rxd8 {[%clk 0:02:24]} 22. Qh5 {[%clk 0:01:10]}  g6 {[%clk 0:02:05]} 23. Rxc5 {[%clk 0:00:43]}  Qe7 {[%clk 0:02:02]} 24. Qh4 {[%clk 0:00:31]}  Qxc5 {[%clk 0:01:59]} 25. Qxf6 {[%clk 0:00:31]}  Rd1+ {[%clk 0:01:58]} 26. Kf2 {[%clk 0:00:32]}  Qf5+ {[%clk 0:01:58]} 27. Qxf5 {[%clk 0:00:32]}  gxf5 {[%clk 0:01:59]} 28. Ke2 {[%clk 0:00:33]}  Rc1 {[%clk 0:01:55]} 29. Kd2 {[%clk 0:00:33]}  Rg1 {[%clk 0:01:55]} 30. g3 {[%clk 0:00:33]}  Rg2+ {[%clk 0:01:53]} 31. Kc3 {[%clk 0:00:34]}  Rxh2 {[%clk 0:01:53]} 32. Nd6 {[%clk 0:00:34]}  Bc6 {[%clk 0:01:47]} 33. Nxf5 {[%clk 0:00:34]}  Bd7 {[%clk 0:01:47]} 34. Nd6 {[%clk 0:00:32]}  Kg7 {[%clk 0:01:44]} 35. Nxe4 {[%clk 0:00:32]}  Bf5 {[%clk 0:01:43]} 36. Nd6 {[%clk 0:00:30]}  Rxc2+ {[%clk 0:01:43]} 37. Kd4 {[%clk 0:00:31]}  Bg6 {[%clk 0:01:42]} 38. a4 {[%clk 0:00:28]}  Rg2 {[%clk 0:01:41]} 39. b4 {[%clk 0:00:26]}  Rxg3 {[%clk 0:01:41]} 40. b5 {[%clk 0:00:27]}  axb5 {[%clk 0:01:41]} 41. axb5 {[%clk 0:00:28]}  Rg1 {[%clk 0:01:41]} 42. b6 {[%clk 0:00:27]}  Rb1 {[%clk 0:01:40]} 43. b7 {[%clk 0:00:27]}  h5 {[%clk 0:01:41]} 44. Kc5 {[%clk 0:00:21]}  Bd3 {[%clk 0:01:22]} 45. Kc6 {[%clk 0:00:10]}  h4 {[%clk 0:01:18]} 46. Kc7 {[%clk 0:00:02]}  h3 {[%clk 0:01:18]} 47. e4 {[%clk 0:00:02]}  h2 {[%clk 0:01:14]} 48. Nf5+ {[%clk 0:00:02]}  Kf6 {[%clk 0:01:12]} 49. Ng3 {[%clk 0:00:03]}  Ke5 {[%clk 0:01:09]} 50. b8=Q {[%clk 0:00:03]}  Rxb8 {[%clk 0:01:07]} 51. Kxb8 {[%clk 0:00:04]}  Kf4 {[%clk 0:01:03]} 52. Nh1 {[%clk 0:00:03]}  Kf3 {[%clk 0:01:00]} 53. e5 {[%clk 0:00:04]}  Kg2 {[%clk 0:00:59]} 54. e6 {[%clk 0:00:04]}  Kxh1 {[%clk 0:00:59]} 55. e7 {[%clk 0:00:04]}  Bb5 {[%clk 0:00:59]} 0-1


[Site "https://www.chess.com"]

[Event "Titled Tuesday Blitz November 14 Early 2023"]
[White "Hasangatin, Ramil"]
[Black "Hafiz, Arif Abdul"]
[WhiteFideId "4122160"]
[BlackFideId "7104227"]
[WhiteElo "2682"]
[BlackElo "2835"]
[Result "0-1"]
[Round "4"]
[TimeControl "180+1"]
[Date "2023.11.14"]
[WhiteClock "0:00:56"]
[BlackClock "0:01:03"]
[Board "33"]

1. e4 {[%clk 0:02:59]}  e5 {[%clk 0:02:59]} 2. Nf3 {[%clk 0:02:56]}  Nc6 {[%clk 0:03:00]} 3. Bb5 {[%clk 0:02:53]}  a6 {[%clk 0:03:00]} 4. Ba4 {[%clk 0:02:53]}  Nf6 {[%clk 0:03:00]} 5. Bxc6 {[%clk 0:02:53]}  dxc6 {[%clk 0:02:59]} 6. d3 {[%clk 0:02:53]}  Bd6 {[%clk 0:02:58]} 7. Bg5 {[%clk 0:02:53]}  h6 {[%clk 0:02:57]} 8. Bh4 {[%clk 0:02:53]}  Qe7 {[%clk 0:02:54]} 9. Nbd2 {[%clk 0:02:52]}  Be6 {[%clk 0:02:50]} 10. Qe2 {[%clk 0:02:52]}  g5 {[%clk 0:02:50]} 11. Bg3 {[%clk 0:02:52]}  Nd7 {[%clk 0:02:51]} 12. Nc4 {[%clk 0:02:51]}  f6 {[%clk 0:02:49]} 13. h4 {[%clk 0:02:48]}  O-O-O {[%clk 0:02:44]} 14. O-O-O {[%clk 0:02:43]}  c5 {[%clk 0:02:38]} 15. Kb1 {[%clk 0:02:41]}  b6 {[%clk 0:02:38]} 16. Nfd2 {[%clk 0:02:38]}  Nb8 {[%clk 0:02:37]} 17. Ne3 {[%clk 0:02:34]}  Nc6 {[%clk 0:02:26]} 18. c3 {[%clk 0:02:33]}  Qf7 {[%clk 0:02:23]} 19. a3 {[%clk 0:02:31]}  Kb7 {[%clk 0:02:20]} 20. f3 {[%clk 0:02:27]}  Rhg8 {[%clk 0:01:58]} 21. h5 {[%clk 0:02:27]}  Ne7 {[%clk 0:01:57]} 22. Bf2 {[%clk 0:02:26]}  f5 {[%clk 0:01:56]} 23. exf5 {[%clk 0:02:25]}  Nxf5 {[%clk 0:01:57]} 24. Nxf5 {[%clk 0:02:15]}  Bxf5 {[%clk 0:01:58]} 25. g4 {[%clk 0:02:08]}  Bh7 {[%clk 0:01:57]} 26. Ne4 {[%clk 0:02:09]}  Rgf8 {[%clk 0:01:56]} 27. Rh3 {[%clk 0:02:08]}  c6 {[%clk 0:01:51]} 28. Qe3 {[%clk 0:02:02]}  Bc7 {[%clk 0:01:49]} 29. Kc2 {[%clk 0:01:58]}  c4 {[%clk 0:01:44]} 30. d4 {[%clk 0:01:30]}  exd4 {[%clk 0:01:39]} 31. cxd4 {[%clk 0:01:30]}  Qd5 {[%clk 0:01:33]} 32. Re1 {[%clk 0:01:17]}  Rde8 {[%clk 0:01:13]} 33. Kb1 {[%clk 0:01:17]}  Rxf3 {[%clk 0:01:10]} 34. Qxf3 {[%clk 0:01:16]}  Bxe4+ {[%clk 0:01:06]} 35. Rxe4 {[%clk 0:01:15]}  Rxe4 {[%clk 0:01:05]} 36. Rh1 {[%clk 0:00:56]}  Re1+ {[%clk 0:01:03]} 0-1


[Site "https://www.chess.com"]

[Event "Titled Tuesday Blitz November 14 Early 2023"]
[White "Bordi, Kevin"]
[Black "Tabatabaei, M. Amin"]
[WhiteFideId "621862"]
[BlackFideId "12521213"]
[WhiteElo "2832"]
[BlackElo "3080"]
[Result "0-1"]
[Round "4"]
[TimeControl "180+1"]
[Date "2023.11.14"]
[WhiteClock "0:00:17"]
[BlackClock "0:00:45"]
[Board "34"]

1. d4 {[%clk 0:03:00]}  Nf6 {[%clk 0:03:00]} 2. Bg5 {[%clk 0:02:59]}  c5 {[%clk 0:02:57]} 3. Bxf6 {[%clk 0:02:53]}  exf6 {[%clk 0:02:58]} 4. c3 {[%clk 0:02:51]}  Qb6 {[%clk 0:02:57]} 5. Qb3 {[%clk 0:02:50]}  d5 {[%clk 0:02:41]} 6. Nd2 {[%clk 0:02:28]}  Nc6 {[%clk 0:02:38]} 7. e3 {[%clk 0:02:28]}  c4 {[%clk 0:02:31]} 8. Qxb6 {[%clk 0:02:27]}  axb6 {[%clk 0:02:31]} 9. a3 {[%clk 0:02:28]}  f5 {[%clk 0:02:30]} 10. g3 {[%clk 0:02:15]}  b5 {[%clk 0:02:29]} 11. O-O-O {[%clk 0:02:09]}  Be6 {[%clk 0:02:30]} 12. Bg2 {[%clk 0:02:07]}  f6 {[%clk 0:02:20]} 13. Ne2 {[%clk 0:02:06]}  g5 {[%clk 0:02:20]} 14. h4 {[%clk 0:02:07]}  Kf7 {[%clk 0:02:18]} 15. hxg5 {[%clk 0:01:50]}  fxg5 {[%clk 0:02:19]} 16. f4 {[%clk 0:01:50]}  g4 {[%clk 0:02:17]} 17. Kc2 {[%clk 0:01:36]}  h5 {[%clk 0:02:16]} 18. Nc1 {[%clk 0:01:36]}  Kg6 {[%clk 0:02:12]} 19. Rh2 {[%clk 0:01:30]}  Be7 {[%clk 0:02:10]} 20. Rdh1 {[%clk 0:01:30]}  Bf6 {[%clk 0:02:09]} 21. Ne2 {[%clk 0:01:29]}  Rh7 {[%clk 0:02:06]} 22. Nf1 {[%clk 0:01:30]}  Rah8 {[%clk 0:02:05]} 23. Kd1 {[%clk 0:01:30]}  Ne7 {[%clk 0:02:05]} 24. Kd2 {[%clk 0:01:30]}  Nc8 {[%clk 0:02:06]} 25. Kc2 {[%clk 0:01:30]}  Nd6 {[%clk 0:02:06]} 26. Kd2 {[%clk 0:01:31]}  Kf7 {[%clk 0:02:00]} 27. Kc2 {[%clk 0:01:31]}  Ke7 {[%clk 0:02:00]} 28. Kd2 {[%clk 0:01:31]}  Kd7 {[%clk 0:02:01]} 29. Kc2 {[%clk 0:01:32]}  Kc6 {[%clk 0:02:01]} 30. Kd2 {[%clk 0:01:33]}  Kb6 {[%clk 0:02:02]} 31. Kc2 {[%clk 0:01:34]}  Ka5 {[%clk 0:02:02]} 32. Kc1 {[%clk 0:01:31]}  Ka4 {[%clk 0:02:01]} 33. Kb1 {[%clk 0:01:30]}  Ka5 {[%clk 0:01:47]} 34. Kc2 {[%clk 0:01:31]}  Bf7 {[%clk 0:01:48]} 35. Kc1 {[%clk 0:01:31]}  Kb6 {[%clk 0:01:48]} 36. Kc2 {[%clk 0:01:31]}  Re8 {[%clk 0:01:47]} 37. Kd2 {[%clk 0:01:31]}  Kc6 {[%clk 0:01:33]} 38. Kc2 {[%clk 0:01:31]}  Reh8 {[%clk 0:01:06]} 39. Kd2 {[%clk 0:01:31]}  Kd7 {[%clk 0:01:06]} 40. Kc2 {[%clk 0:01:31]}  Ke6 {[%clk 0:01:07]} 41. Kd2 {[%clk 0:01:32]}  Be8 {[%clk 0:01:07]} 42. Kc2 {[%clk 0:01:31]}  Rh6 {[%clk 0:00:59]} 43. Kd2 {[%clk 0:01:31]}  Bc6 {[%clk 0:00:53]} 44. Kc2 {[%clk 0:01:31]}  Ne8 {[%clk 0:00:54]} 45. Kd2 {[%clk 0:01:31]}  Ng7 {[%clk 0:00:52]} 46. Kc2 {[%clk 0:01:31]}  Kf7 {[%clk 0:00:50]} 47. Kd2 {[%clk 0:01:31]}  Kg6 {[%clk 0:00:51]} 48. Kc2 {[%clk 0:01:32]}  h4 {[%clk 0:00:49]} 49. gxh4 {[%clk 0:01:32]}  Rxh4 {[%clk 0:00:50]} 50. Rxh4 {[%clk 0:01:31]}  Rxh4 {[%clk 0:00:51]} 51. Rxh4 {[%clk 0:01:30]}  Bxh4 {[%clk 0:00:52]} 52. Nfg3 {[%clk 0:01:30]}  Nh5 {[%clk 0:00:50]} 53. Nxh5 {[%clk 0:01:29]}  Kxh5 {[%clk 0:00:51]} 54. Kd2 {[%clk 0:01:29]}  Bf2 {[%clk 0:00:52]} 55. Nc1 {[%clk 0:01:07]}  Kh4 {[%clk 0:00:52]} 56. Ke2 {[%clk 0:00:46]}  Kg3 {[%clk 0:00:52]} 57. Bh1 {[%clk 0:00:46]}  Bg1 {[%clk 0:00:51]} 58. Kf1 {[%clk 0:00:30]}  Bxe3 {[%clk 0:00:51]} 59. Ne2+ {[%clk 0:00:30]}  Kh2 {[%clk 0:00:51]} 60. Bg2 {[%clk 0:00:17]}  b6 {[%clk 0:00:45]} 0-1


[Site "https://www.chess.com"]

[Event "Titled Tuesday Blitz November 14 Early 2023"]
[White "Sadhwani, Raunak"]
[Black "Nasir, Zehn"]
[WhiteFideId "35093487"]
[BlackFideId "2613239"]
[WhiteElo "3049"]
[BlackElo "2585"]
[Result "1-0"]
[Round "4"]
[TimeControl "180+1"]
[Date "2023.11.14"]
[WhiteClock "0:00:31"]
[BlackClock "0:00:01"]
[Board "35"]

1. a3 {[%clk 0:03:00]}  d5 {[%clk 0:02:58]} 2. d4 {[%clk 0:03:00]}  Nf6 {[%clk 0:02:58]} 3. Nf3 {[%clk 0:03:00]}  Bf5 {[%clk 0:02:57]} 4. Bg5 {[%clk 0:02:53]}  e6 {[%clk 0:02:55]} 5. e3 {[%clk 0:02:53]}  c6 {[%clk 0:02:54]} 6. c4 {[%clk 0:02:52]}  Nbd7 {[%clk 0:02:53]} 7. Nc3 {[%clk 0:02:52]}  Bd6 {[%clk 0:02:52]} 8. Be2 {[%clk 0:02:51]}  O-O {[%clk 0:02:51]} 9. Nh4 {[%clk 0:02:51]}  h6 {[%clk 0:02:33]} 10. Nxf5 {[%clk 0:02:51]}  exf5 {[%clk 0:02:34]} 11. Bh4 {[%clk 0:02:52]}  Qe8 {[%clk 0:02:20]} 12. Qc2 {[%clk 0:02:48]}  Ne4 {[%clk 0:02:11]} 13. cxd5 {[%clk 0:02:45]}  Nxc3 {[%clk 0:01:35]} 14. bxc3 {[%clk 0:02:46]}  g5 {[%clk 0:01:26]} 15. dxc6 {[%clk 0:02:46]}  bxc6 {[%clk 0:01:16]} 16. Bg3 {[%clk 0:02:44]}  Bxg3 {[%clk 0:01:03]} 17. hxg3 {[%clk 0:02:44]}  Qe6 {[%clk 0:01:04]} 18. Bd3 {[%clk 0:02:36]}  f4 {[%clk 0:01:01]} 19. Bf5 {[%clk 0:02:32]}  Qe7 {[%clk 0:00:56]} 20. Rxh6 {[%clk 0:02:23]}  Nf6 {[%clk 0:00:46]} 21. gxf4 {[%clk 0:02:16]}  gxf4 {[%clk 0:00:46]} 22. e4 {[%clk 0:02:17]}  Kg7 {[%clk 0:00:44]} 23. Rh3 {[%clk 0:02:17]}  Rh8 {[%clk 0:00:43]} 24. e5 {[%clk 0:02:05]}  Rxh3 {[%clk 0:00:28]} 25. Bxh3 {[%clk 0:02:04]}  Nd5 {[%clk 0:00:23]} 26. Bg4 {[%clk 0:01:59]}  Rh8 {[%clk 0:00:21]} 27. Ke2 {[%clk 0:01:51]}  f3+ {[%clk 0:00:19]} 28. Kxf3 {[%clk 0:01:43]}  Qg5 {[%clk 0:00:16]} 29. g3 {[%clk 0:01:40]}  Rh2 {[%clk 0:00:15]} 30. Re1 {[%clk 0:01:31]}  f6 {[%clk 0:00:12]} 31. c4 {[%clk 0:01:29]}  Ne7 {[%clk 0:00:05]} 32. exf6+ {[%clk 0:00:54]}  Qxf6+ {[%clk 0:00:05]} 33. Ke3 {[%clk 0:00:55]}  Qg5+ {[%clk 0:00:03]} 34. Kd3 {[%clk 0:00:55]}  Qxg4 {[%clk 0:00:03]} 35. Rxe7+ {[%clk 0:00:55]}  Kf6 {[%clk 0:00:03]} 36. Re3 {[%clk 0:00:54]}  Qf5+ {[%clk 0:00:03]} 37. Kc3 {[%clk 0:00:51]}  Qxc2+ {[%clk 0:00:03]} 38. Kxc2 {[%clk 0:00:52]}  Rxf2+ {[%clk 0:00:03]} 39. Kc3 {[%clk 0:00:53]}  Ra2 {[%clk 0:00:04]} 40. Kb4 {[%clk 0:00:53]}  Rd2 {[%clk 0:00:03]} 41. Kc5 {[%clk 0:00:53]}  Kf5 {[%clk 0:00:02]} 42. Re5+ {[%clk 0:00:52]}  Kf6 {[%clk 0:00:02]} 43. Re3 {[%clk 0:00:48]}  Rc2 {[%clk 0:00:02]} 44. g4 {[%clk 0:00:47]}  a5 {[%clk 0:00:02]} 45. Rd3 {[%clk 0:00:38]}  a4 {[%clk 0:00:02]} 46. Re3 {[%clk 0:00:31]}  Kg5 {[%clk 0:00:01]} 47. Re6 {[%clk 0:00:30]}  Rc3 {[%clk 0:00:01]} 48. Rxc6 {[%clk 0:00:31]}  Rxa3 {[%clk 0:00:02]} 49. Ra6 {[%clk 0:00:32]}  Ra1 {[%clk 0:00:02]} 50. d5 {[%clk 0:00:31]}  a3 {[%clk 0:00:01]} 51. Kd6 {[%clk 0:00:32]}  Kxg4 {[%clk 0:00:01]} 52. c5 {[%clk 0:00:32]}  Kf4 {[%clk 0:00:01]} 53. c6 {[%clk 0:00:33]}  Ke4 {[%clk 0:00:01]} 54. c7 {[%clk 0:00:33]}  Rd1 {[%clk 0:00:02]} 55. Ra4+ {[%clk 0:00:32]}  Ke3 {[%clk 0:00:01]} 56. c8=Q {[%clk 0:00:31]}  Rc1 {[%clk 0:00:01]} 1-0


[Site "https://www.chess.com"]

[Event "Titled Tuesday Blitz November 14 Early 2023"]
[White "Kamalidenova, Meruert"]
[Black "Niemann, Hans Moke"]
[WhiteFideId "13712802"]
[BlackFideId "2093596"]
[WhiteElo "2645"]
[BlackElo "3029"]
[Result "0-1"]
[Round "4"]
[TimeControl "180+1"]
[Date "2023.11.14"]
[WhiteClock "0:00:00"]
[BlackClock "0:01:02"]
[Board "36"]

1. e4 {[%clk 0:03:00]}  c5 {[%clk 0:02:59]} 2. Nf3 {[%clk 0:03:00]}  Nc6 {[%clk 0:02:56]} 3. Bb5 {[%clk 0:02:57]}  g6 {[%clk 0:02:55]} 4. O-O {[%clk 0:02:55]}  Bg7 {[%clk 0:02:55]} 5. c3 {[%clk 0:02:55]}  Nf6 {[%clk 0:02:55]} 6. Re1 {[%clk 0:02:49]}  a6 {[%clk 0:02:54]} 7. Bxc6 {[%clk 0:02:44]}  dxc6 {[%clk 0:02:55]} 8. e5 {[%clk 0:02:35]}  Nd5 {[%clk 0:02:54]} 9. d4 {[%clk 0:02:35]}  cxd4 {[%clk 0:02:54]} 10. cxd4 {[%clk 0:02:34]}  O-O {[%clk 0:02:54]} 11. h3 {[%clk 0:02:30]}  b6 {[%clk 0:02:51]} 12. Nc3 {[%clk 0:02:30]}  Bb7 {[%clk 0:02:47]} 13. Qb3 {[%clk 0:02:19]}  c5 {[%clk 0:02:33]} 14. dxc5 {[%clk 0:02:12]}  Nxc3 {[%clk 0:02:32]} 15. Qxc3 {[%clk 0:02:12]}  Rc8 {[%clk 0:02:30]} 16. b4 {[%clk 0:02:06]}  a5 {[%clk 0:02:10]} 17. a3 {[%clk 0:01:50]}  bxc5 {[%clk 0:02:09]} 18. bxc5 {[%clk 0:01:47]}  Bxf3 {[%clk 0:02:07]} 19. Qxf3 {[%clk 0:01:32]}  Rxc5 {[%clk 0:02:03]} 20. Bf4 {[%clk 0:01:31]}  Qc8 {[%clk 0:01:46]} 21. Rad1 {[%clk 0:01:30]}  Qe6 {[%clk 0:01:46]} 22. Qe3 {[%clk 0:01:17]}  Rfc8 {[%clk 0:01:45]} 23. Rd3 {[%clk 0:01:17]}  h5 {[%clk 0:01:43]} 24. Bg3 {[%clk 0:00:58]}  Kh7 {[%clk 0:01:40]} 25. Bf4 {[%clk 0:00:48]}  Qf5 {[%clk 0:01:38]} 26. e6 {[%clk 0:00:46]}  fxe6 {[%clk 0:01:36]} 27. Bg3 {[%clk 0:00:42]}  e5 {[%clk 0:01:28]} 28. Rb3 {[%clk 0:00:43]}  Bf6 {[%clk 0:01:25]} 29. Rd1 {[%clk 0:00:39]}  h4 {[%clk 0:01:24]} 30. Bh2 {[%clk 0:00:38]}  Bg5 {[%clk 0:01:23]} 31. Qe1 {[%clk 0:00:26]}  Rc1 {[%clk 0:01:21]} 32. f4 {[%clk 0:00:20]}  Rxd1 {[%clk 0:01:18]} 33. Qxd1 {[%clk 0:00:20]}  exf4 {[%clk 0:01:18]} 34. Rb1 {[%clk 0:00:15]}  f3 {[%clk 0:01:15]} 35. gxf3 {[%clk 0:00:15]}  Qxh3 {[%clk 0:01:14]} 36. Qd5 {[%clk 0:00:14]}  Qf5 {[%clk 0:01:08]} 37. Qxf5 {[%clk 0:00:14]}  gxf5 {[%clk 0:01:09]} 38. Rb5 {[%clk 0:00:14]}  Kg6 {[%clk 0:01:09]} 39. Rxa5 {[%clk 0:00:14]}  h3 {[%clk 0:01:09]} 40. Be5 {[%clk 0:00:14]}  Rc2 {[%clk 0:01:08]} 41. Ra4 {[%clk 0:00:14]}  Re2 {[%clk 0:01:05]} 42. Bc7 {[%clk 0:00:10]}  e5 {[%clk 0:01:04]} 43. f4 {[%clk 0:00:09]}  Bxf4 {[%clk 0:01:04]} 44. Ra6+ {[%clk 0:00:05]}  Kh5 {[%clk 0:01:03]} 45. Kf1 {[%clk 0:00:00]}  Rc2 {[%clk 0:01:02]} 0-1


[Site "https://www.chess.com"]

[Event "Titled Tuesday Blitz November 14 Early 2023"]
[White "Oparin, Grigoriy"]
[Black "Pastar, Slaven"]
[WhiteFideId "24125890"]
[BlackFideId "14402718"]
[WhiteElo "2990"]
[BlackElo "2642"]
[Result "1-0"]
[Round "4"]
[TimeControl "180+1"]
[Date "2023.11.14"]
[WhiteClock "0:02:30"]
[BlackClock "0:01:13"]
[Board "38"]

1. g3 {[%clk 0:03:00]}  d5 {[%clk 0:02:56]} 2. Bg2 {[%clk 0:03:01]}  e5 {[%clk 0:02:55]} 3. d3 {[%clk 0:03:02]}  g6 {[%clk 0:02:53]} 4. Nf3 {[%clk 0:03:01]}  Bg7 {[%clk 0:02:54]} 5. O-O {[%clk 0:03:02]}  c5 {[%clk 0:02:44]} 6. c4 {[%clk 0:02:59]}  d4 {[%clk 0:02:36]} 7. b4 {[%clk 0:02:59]}  cxb4 {[%clk 0:02:32]} 8. a3 {[%clk 0:03:00]}  bxa3 {[%clk 0:02:30]} 9. Bxa3 {[%clk 0:03:01]}  Ne7 {[%clk 0:02:30]} 10. Nbd2 {[%clk 0:02:52]}  O-O {[%clk 0:02:30]} 11. Qb3 {[%clk 0:02:49]}  h6 {[%clk 0:02:22]} 12. Ne4 {[%clk 0:02:48]}  Kh7 {[%clk 0:02:18]} 13. Nd6 {[%clk 0:02:45]}  Nbc6 {[%clk 0:02:16]} 14. Nxb7 {[%clk 0:02:38]}  Bxb7 {[%clk 0:01:30]} 15. Qxb7 {[%clk 0:02:38]}  Qb6 {[%clk 0:01:30]} 16. Rfb1 {[%clk 0:02:37]}  Qxb7 {[%clk 0:01:30]} 17. Rxb7 {[%clk 0:02:38]}  Rfe8 {[%clk 0:01:20]} 18. Nd2 {[%clk 0:02:34]}  Kg8 {[%clk 0:01:17]} 19. Bxe7 {[%clk 0:02:29]}  Nxe7 {[%clk 0:01:13]} 20. Rxe7 {[%clk 0:02:29]}  Rxe7 {[%clk 0:01:13]} 21. Bxa8 {[%clk 0:02:30]} 1-0


[Site "https://www.chess.com"]

[Event "Titled Tuesday Blitz November 14 Early 2023"]
[White "Galchenko, Matvey"]
[Black "Parkhov, Yair"]
[WhiteFideId "24175480"]
[BlackFideId "2813408"]
[WhiteElo "2941"]
[BlackElo "2635"]
[Result "1-0"]
[Round "4"]
[TimeControl "180+1"]
[Date "2023.11.14"]
[WhiteClock "0:00:07"]
[BlackClock "0:00:00"]
[Board "41"]

1. e4 {[%clk 0:02:55]}  e6 {[%clk 0:02:57]} 2. d4 {[%clk 0:02:54]}  d5 {[%clk 0:02:58]} 3. e5 {[%clk 0:02:55]}  c5 {[%clk 0:02:58]} 4. c3 {[%clk 0:02:56]}  Nc6 {[%clk 0:02:58]} 5. Nf3 {[%clk 0:02:56]}  Bd7 {[%clk 0:02:59]} 6. Be2 {[%clk 0:02:54]}  Qb6 {[%clk 0:02:59]} 7. dxc5 {[%clk 0:02:42]}  Bxc5 {[%clk 0:02:55]} 8. O-O {[%clk 0:02:43]}  Qc7 {[%clk 0:02:53]} 9. b4 {[%clk 0:02:39]}  Bb6 {[%clk 0:02:48]} 10. Bf4 {[%clk 0:02:38]}  Nge7 {[%clk 0:02:44]} 11. Na3 {[%clk 0:02:35]}  a6 {[%clk 0:02:44]} 12. Re1 {[%clk 0:02:25]}  Ng6 {[%clk 0:02:37]} 13. Bg3 {[%clk 0:02:25]}  O-O {[%clk 0:02:22]} 14. Bd3 {[%clk 0:02:19]}  Rad8 {[%clk 0:02:13]} 15. h4 {[%clk 0:01:38]}  h6 {[%clk 0:02:05]} 16. Nc2 {[%clk 0:01:33]}  Qb8 {[%clk 0:02:00]} 17. h5 {[%clk 0:01:29]}  Nge7 {[%clk 0:01:59]} 18. Ncd4 {[%clk 0:01:28]}  Nxd4 {[%clk 0:01:55]} 19. Nxd4 {[%clk 0:01:28]}  Nc6 {[%clk 0:01:54]} 20. Nb3 {[%clk 0:01:06]}  Bc7 {[%clk 0:01:46]} 21. Qe2 {[%clk 0:01:00]}  f5 {[%clk 0:01:35]} 22. f4 {[%clk 0:00:40]}  Bb6+ {[%clk 0:01:23]} 23. Kh2 {[%clk 0:00:39]}  Be8 {[%clk 0:01:23]} 24. a3 {[%clk 0:00:37]}  Qc7 {[%clk 0:01:21]} 25. Qf3 {[%clk 0:00:34]}  Qf7 {[%clk 0:01:21]} 26. Be2 {[%clk 0:00:34]}  Rc8 {[%clk 0:01:20]} 27. Rad1 {[%clk 0:00:33]}  Na7 {[%clk 0:01:20]} 28. Nc5 {[%clk 0:00:30]}  Bxc5 {[%clk 0:01:18]} 29. bxc5 {[%clk 0:00:31]}  Bb5 {[%clk 0:01:16]} 30. c4 {[%clk 0:00:23]}  Bxc4 {[%clk 0:01:09]} 31. Bxc4 {[%clk 0:00:24]}  dxc4 {[%clk 0:01:10]} 32. Bf2 {[%clk 0:00:24]}  Rfd8 {[%clk 0:01:00]} 33. a4 {[%clk 0:00:25]}  Nc6 {[%clk 0:00:54]} 34. Rd6 {[%clk 0:00:22]}  Kh7 {[%clk 0:00:49]} 35. Bh4 {[%clk 0:00:21]}  Rf8 {[%clk 0:00:42]} 36. Rc1 {[%clk 0:00:20]}  Nb4 {[%clk 0:00:32]} 37. Rxc4 {[%clk 0:00:19]}  Nd5 {[%clk 0:00:32]} 38. Bf2 {[%clk 0:00:12]}  Rc6 {[%clk 0:00:32]} 39. Rc1 {[%clk 0:00:11]}  Rfc8 {[%clk 0:00:31]} 40. Rb1 {[%clk 0:00:11]}  R8c7 {[%clk 0:00:28]} 41. a5 {[%clk 0:00:11]}  Rc8 {[%clk 0:00:25]} 42. Kg1 {[%clk 0:00:11]}  R8c7 {[%clk 0:00:23]} 43. Bd4 {[%clk 0:00:12]}  Rc8 {[%clk 0:00:21]} 44. Rf1 {[%clk 0:00:12]}  Nc7 {[%clk 0:00:16]} 45. g4 {[%clk 0:00:07]}  Nb5 {[%clk 0:00:14]} 46. Be3 {[%clk 0:00:08]}  Nxd6 {[%clk 0:00:14]} 47. exd6 {[%clk 0:00:09]}  Rxc5 {[%clk 0:00:12]} 48. Bxc5 {[%clk 0:00:08]}  Rxc5 {[%clk 0:00:13]} 49. Rd1 {[%clk 0:00:09]}  Qd7 {[%clk 0:00:11]} 50. gxf5 {[%clk 0:00:08]}  Rxf5 {[%clk 0:00:11]} 51. Qe4 {[%clk 0:00:09]}  Kg8 {[%clk 0:00:11]} 52. Qc4 {[%clk 0:00:08]}  Rf7 {[%clk 0:00:09]} 53. Kg2 {[%clk 0:00:08]}  Kh7 {[%clk 0:00:07]} 54. Kg3 {[%clk 0:00:08]}  Kg8 {[%clk 0:00:06]} 55. Qc2 {[%clk 0:00:08]}  Kh8 {[%clk 0:00:06]} 56. Qd3 {[%clk 0:00:07]}  Kg8 {[%clk 0:00:06]} 57. Rc1 {[%clk 0:00:08]}  Qd8 {[%clk 0:00:04]} 58. Qg6 {[%clk 0:00:05]}  Rd7 {[%clk 0:00:04]} 59. Qxe6+ {[%clk 0:00:05]}  Kh8 {[%clk 0:00:05]} 60. Rd1 {[%clk 0:00:05]}  Kh7 {[%clk 0:00:04]} 61. Rd5 {[%clk 0:00:05]}  Kh8 {[%clk 0:00:04]} 62. Rd4 {[%clk 0:00:06]}  Kh7 {[%clk 0:00:03]} 63. Qg6+ {[%clk 0:00:07]}  Kh8 {[%clk 0:00:00]} 64. Re4 {[%clk 0:00:07]} 1-0


[Site "https://www.chess.com"]